bitfinex/quotes_ETHUSD_20250114
["timestamp","ask_amount","ask_price","bid_price","bid_amount"]
[1736856124042,2.93304475,3218.5,3217.3,3.93652]
[1736856124043,0.8892,3219.1,3217.8,2.93304475]
[1736856124345,0.03883787,3219.0,3218.0,0.8284]
[1736856124496,0.03883787,3219.0,3218.2,3.10725]
[1736856125433,0.8892,3218.9,3218.2,3.10725]
[1736856125679,0.03883704,3218.8,3218.2,3.10725]
[1736856126744,0.8892,3219.2,3218.6,3.10693]
[1736856126949,0.03883134,3219.1,3218.4,3.93547]
[1736856127111,0.03883134,3219.1,3218.4,3.10707]
[1736856128354,0.8892,3219.0,3218.2,3.1073]
[1736856128651,0.03883474,3218.9,3218.3,3.50078]
[1736856129754,0.03883416,3218.9,3218.3,3.50078]
[1736856130926,0.03883416,3218.9,3218.3,0.39357]
[1736856131257,0.03883416,3218.9,3218.2,3.10732]
[1736856132357,0.8892,3219.0,3218.3,3.10722]
[1736856132919,0.8892,3219.0,3218.5,3.10696]
[1736856133191,0.8892,3219.0,3218.1,3.76144475]
[1736856133345,0.8892,3219.0,3218.5,3.10694]
[1736856133544,0.8892,3219.0,3218.5,3.417634]
[1736856134223,0.8892,3219.0,3218.6,3.10693]
[1736856135761,0.8892,3219.0,3218.5,0.310694]
[1736856136224,0.8892,3219.0,3218.5,3.10703]
[1736856137059,0.8892,3219.0,3218.3,3.10717]
[1736856137368,0.8892,3219.0,3217.9,3.43430448]
[1736856137369,3.97258,3218.7,3217.9,0.139]
[1736856137729,3.97258,3218.7,3217.8,4.56721835]
[1736856137927,0.03884053,3218.6,3217.8,1.45951835]
[1736856138268,0.8657,3218.2,3217.4,3.10806]
[1736856138474,0.03884425,3218.1,3217.9,0.29063591]
[1736856138767,3.97304,3218.2,3217.9,0.29063591]
[1736856138972,0.03884494,3218.1,3217.9,0.29063591]
[1736856139529,0.8657,3218.9,3217.9,0.29063591]
[1736856139739,0.90453739,3218.9,3218.2,3.10731]
[1736856139942,0.8657,3218.9,3218.2,3.10731]
[1736856140939,0.03883568,3218.8,3218.2,3.10731]
[1736856141148,0.8657,3218.9,3218.3,3.10715]
[1736856141478,0.8657,3218.9,3218.2,3.10729]
[1736856141627,0.8657,3218.9,3218.3,0.68689348]
[1736856141824,0.8657,3218.9,3218.3,3.79404348]
[1736856142030,0.8657,3218.9,3218.4,3.10705]
[1736856144060,0.8657,3218.9,3218.3,0.68689348]
[1736856144373,0.8657,3218.9,3218.4,0.29056909]
[1736856145372,0.8657,3218.9,3218.4,0.69903435]
[1736856145880,0.8657,3218.9,3218.4,0.40846526]
[1736856146990,0.03883474,3218.8,3218.3,0.68689348]
[1736856147297,0.8657,3218.9,3218.3,0.68689348]
[1736856147477,0.8657,3218.9,3218.2,3.1073]
[1736856147984,0.8657,3218.9,3218.3,0.29060281]
[1736856148494,0.8657,3218.9,3218.4,3.10711]
[1736856151166,0.8657,3218.9,3218.5,0.29075443]
[1736856152226,0.8657,3218.9,3218.3,3.10721]
[1736856152389,0.8657,3218.9,3218.3,3.45227222]
[1736856153191,0.8657,3218.9,3218.4,3.10711]
[1736856153519,0.8657,3218.9,3218.4,3.39810197]
[1736856154594,0.8657,3218.9,3218.5,0.29099197]
[1736856155412,0.8657,3218.9,3218.3,0.34506222]
[1736856155593,0.8657,3218.9,3218.3,3.45228222]
[1736856156489,0.8657,3218.9,3218.4,0.29114932]
[1736856157908,0.8657,3218.9,3218.2,0.29114932]
[1736856158801,0.8492,3218.7,3218.2,0.29114932]
[1736856159019,0.8492,3218.7,3218.1,3.10737]
[1736856159225,0.8492,3218.7,3218.2,3.10731]
[1736856163142,0.8492,3218.7,3218.1,0.393597]
[1736856163347,0.8492,3218.7,3218.0,3.10747]
[1736856163550,0.8492,3218.7,3218.2,0.29112322]
[1736856165604,0.8492,3218.7,3218.0,3.10747]
[1736856166550,0.8492,3218.7,3218.1,0.29117536]
[1736856167859,0.8492,3218.7,3218.2,0.29117536]
[1736856169047,0.8492,3218.7,3217.9,0.8286]
[1736856169256,0.8492,3218.7,3218.3,3.10718]
[1736856169549,0.8492,3218.7,3218.2,3.10731]
[1736856170120,0.8492,3218.7,3218.3,0.29130362]
[1736856170959,0.8684,3218.9,3218.4,2.93304475]
[1736856171315,0.8684,3218.9,3218.5,0.29130362]
[1736856172320,0.8684,3218.9,3218.4,3.10712]
[1736856172321,0.8684,3218.9,3218.6,0.29130362]
[1736856173335,0.8684,3218.9,3218.6,0.33984136]
[1736856173627,0.8684,3218.9,3218.0,0.4526269]
[1736856173840,0.8684,3218.9,3218.1,3.10741]
[1736856174067,0.8684,3218.9,3218.2,0.29128794]
[1736856174626,3.97505,3218.9,3218.2,0.29128794]
[1736856174974,0.03883589,3218.8,3218.2,0.29128794]
[1736856175275,0.8684,3218.7,3218.3,0.29128794]
[1736856176165,0.8684,3218.7,3218.4,0.29128794]
[1736856177175,0.8684,3218.7,3218.0,3.5601269]
[1736856177475,0.8684,3218.7,3218.1,0.44351269]
[1736856178311,0.8684,3218.7,3218.2,0.29130071]
[1736856179461,0.8684,3218.7,3218.3,0.29130071]
[1736856180472,0.8684,3218.7,3218.1,0.44351269]
[1736856180772,0.8684,3218.7,3218.0,0.4526269]
[1736856181077,0.8684,3218.7,3217.9,0.875]
[1736856181275,0.8684,3218.7,3217.9,3.98261]
[1736856181677,0.8684,3218.7,3217.9,0.875]
[1736856181847,0.89703683,3218.6,3218.0,0.29135436]
[1736856182174,3.10732,3218.2,3218.0,0.29135436]
[1736856182345,0.89704396,3218.1,3218.0,0.29135436]
[1736856182546,4.00446396,3218.1,3218.0,0.29135436]
[1736856183491,0.8582,3218.0,3217.5,0.29135436]
[1736856183653,0.03884707,3217.9,3217.5,0.29135436]
[1736856184177,0.8582,3217.8,3217.5,0.29135436]
[1736856184862,0.8582,3217.8,3217.4,0.32279479]
[1736856186472,0.8582,3217.8,3217.3,0.14]
[1736856187568,0.8582,3217.8,3216.9,4.1466336]
[1736856187569,3.10809,3217.5,3216.9,0.94946776]
[1736856187792,0.8582,3217.4,3216.9,0.62567891]
[1736856189071,0.8582,3217.4,3216.9,0.91637818]
[1736856189260,0.8582,3217.4,3217.0,0.40250382]
[1736856190599,0.8582,3217.6,3217.2,3.1082]
[1736856190743,0.8582,3217.6,3217.3,3.10819]
[1736856190950,0.8582,3217.6,3217.1,2.93304475]
[1736856190951,0.8582,3217.6,3217.1,6.04140475]
[1736856191392,0.8582,3218.0,3217.2,3.10828]
[1736856191597,0.89704715,3218.0,3217.3,0.60413248]
[1736856192695,0.8582,3218.0,3217.3,0.60413248]
[1736856193183,0.8582,3218.0,3217.3,3.71230248]
[1736856193585,0.8582,3217.7,3217.0,1.29230382]
[1736856193749,0.89705025,3217.7,3217.0,0.8898]
[1736856193953,0.89705025,3217.7,3217.0,1.18022915]
[1736856194265,0.89705025,3217.7,3217.0,0.29042915]
[1736856195055,4.00486025,3217.7,3217.0,0.29042915]
[1736856195354,0.8174,3217.6,3216.9,3.93687891]
[1736856195591,0.8562503,3217.5,3216.7,3.10874]
[1736856195921,0.8174,3217.5,3217.0,3.10848]
[1736856196295,3.9254,3217.5,3216.7,0.14]
[1736856196608,3.14649242,3217.9,3216.7,0.14]
[1736856196609,0.8174,3217.3,3216.7,0.6223246]
[1736856196753,0.8174,3217.1,3216.5,0.63501908]
[1736856196956,0.8174,3217.1,3216.5,0.32381908]
[1736856199572,0.8174,3217.1,3216.5,3.43277908]
[1736856201090,0.8174,3217.1,3216.5,0.32381908]
[1736856201483,3.7523835,3218.0,3216.5,0.32381908]
[1736856201484,0.03885722,3217.0,3216.5,0.32381908]
[1736856201713,0.8174,3216.9,3216.1,2.93304475]
[1736856201892,0.8174,3216.9,3216.2,0.41216448]
[1736856202213,0.8174,3216.9,3216.2,0.55116448]
[1736856202425,0.8174,3216.9,3216.2,0.84139808]
[1736856202780,0.8174,3216.9,3216.3,3.10915]
[1736856207624,0.8174,3216.9,3216.4,3.10904]
[1736856207781,0.8174,3216.9,3216.4,0.29049676]
[1736856208376,0.85625844,3216.8,3216.4,0.29049676]
[1736856208879,0.85626065,3216.8,3216.4,0.29049676]
[1736856209376,0.85626065,3216.8,3216.0,3.10944]
[1736856209586,0.85626065,3216.8,3215.7,3.8774]
[1736856209733,0.8174,3216.8,3215.8,2.93304475]
[1736856209940,0.8174,3216.8,3216.1,2.93304475]
[1736856210650,0.8174,3216.8,3216.2,0.2907034]
[1736856211039,0.8174,3216.8,3216.3,3.10915]
[1736856211273,0.8174,3216.8,3216.2,3.3999534]
[1736856211543,0.8174,3216.8,3216.3,0.2907034]
[1736856212352,0.8562606,3216.8,3216.3,0.2907034]
[1736856212896,0.8562606,3216.8,3216.2,3.3999334]
[1736856213095,0.8174,3216.8,3216.2,3.3999334]
[1736856213301,0.8174,3216.8,3216.3,3.10914]
[1736856213453,0.8174,3216.8,3216.4,2.93304475]
[1736856213798,0.8174,3216.8,3216.4,6.04207475]
[1736856214851,0.8174,3216.8,3216.4,3.10903]
[1736856215247,0.8174,3216.8,3216.2,3.10921]
[1736856216149,0.8174,3216.8,3216.2,3.10924]
[1736856216395,0.8174,3216.8,3216.0,0.139]
[1736856216396,0.8174,3216.8,3216.3,0.29089248]
[1736856216592,3.96498966,3216.8,3216.3,0.29089248]
[1736856216764,0.8743,3216.7,3216.3,0.29089248]
[1736856217100,0.91316232,3216.6,3216.3,0.29089248]
[1736856217265,3.14774232,3216.6,3216.3,0.29089248]
[1736856217457,0.8743,3216.5,3216.3,0.29089248]
[1736856217789,0.91316458,3216.5,3215.9,0.29089248]
[1736856218493,0.8743,3216.5,3215.9,0.29089248]
[1736856218795,0.8743,3216.5,3216.0,0.29089248]
[1736856219689,0.8743,3216.5,3215.8,6.81847352]
[1736856219911,0.8743,3216.5,3215.8,7.68904605]
[1736856220711,0.8743,3216.5,3215.9,3.10951]
[1736856221116,0.8743,3216.5,3216.0,3.10944]
[1736856222219,0.8743,3216.5,3216.1,0.29094442]
[1736856223479,0.8743,3216.5,3216.2,0.29094442]
[1736856224817,0.8743,3216.5,3216.0,3.10944]
[1736856225020,0.8743,3216.5,3216.0,0.76888461]
[1736856225172,0.8543,3217.2,3216.2,0.8353]
[1736856225517,0.03885923,3217.1,3216.6,3.10885]
[1736856225680,0.8543,3217.2,3216.6,3.10885]
[1736856226821,0.8543,3217.2,3216.2,3.94451]
[1736856226822,0.8543,3217.2,3216.7,0.29127167]
[1736856227021,0.8931584,3217.1,3216.7,0.29127167]
[1736856228000,0.8543,3217.1,3216.5,3.10894]
[1736856228641,0.8543,3217.1,3216.6,0.29139506]
[1736856229352,0.8931584,3217.1,3216.6,0.29139506]
[1736856229847,0.8931584,3217.1,3216.7,0.29139506]
[1736856230707,0.8931584,3217.1,3216.5,3.10894]
[1736856231447,0.8931584,3217.1,3216.2,0.8353]
[1736856231747,0.8543,3216.9,3216.1,3.10926]
[1736856231917,0.03886141,3216.8,3216.3,0.29145533]
[1736856232707,0.03886141,3216.8,3216.4,0.29145533]
[1736856233810,0.03886141,3216.8,3216.5,0.29145533]
[1736856234860,0.8543,3216.9,3216.5,0.29145533]
[1736856235515,0.8543,3216.9,3216.1,3.68347275]
[1736856235516,0.8543,3216.9,3216.4,3.10902]
[1736856235717,0.8543,3216.9,3216.4,3.509042]
[1736856237961,0.8543,3216.9,3216.5,0.29144722]
[1736856238866,0.8543,3216.9,3216.6,0.29144722]
[1736856240066,0.8543,3216.9,3216.7,0.29144722]
[1736856240863,0.8543,3216.9,3216.7,3.22449197]
[1736856241087,0.8834,3217.8,3216.8,0.61389642]
[1736856241268,0.8834,3217.8,3217.3,2.93304475]
[1736856241718,0.8834,3217.8,3217.3,6.04115475]
[1736856241919,0.8834,3217.8,3217.4,0.68614548]
[1736856243420,0.8834,3217.8,3217.4,3.79421548]
[1736856249514,0.8834,3217.8,3217.4,0.68614548]
[1736856251927,0.8834,3217.8,3217.4,3.79418548]
[1736856252448,0.8834,3217.8,3217.4,0.68614548]
[1736856252619,0.8834,3217.8,3217.2,0.9593]
[1736856252620,0.8834,3217.8,3217.2,4.06751]
[1736856253003,0.8834,3217.8,3217.4,3.10808]
[1736856258327,0.8834,3217.8,3217.2,0.75176133]
[1736856258532,0.03884965,3217.7,3217.0,3.10844]
[1736856258744,0.887,3217.6,3217.0,3.10844]
[1736856261862,0.887,3217.6,3216.6,3.3112]
[1736856261863,0.92585099,3217.5,3216.4,0.32132407]
[1736856262031,0.887,3217.2,3216.4,0.32132407]
[1736856262231,0.887,3217.0,3216.4,0.32132407]
[1736856262461,0.887,3216.7,3216.4,0.32132407]
[1736856262667,3.10875,3216.8,3216.0,0.62261049]
[1736856262668,0.887,3216.5,3216.0,0.62261049]
[1736856262834,0.03886435,3216.4,3216.0,0.62261049]
[1736856263031,0.887,3216.5,3216.0,0.62261049]
[1736856263346,0.887,3216.5,3216.3,0.32189374]
[1736856269595,0.887,3216.5,3215.6,3.10975]
[1736856269596,0.03886551,3216.4,3215.6,3.10975]
[1736856269771,0.03886551,3216.4,3215.7,0.70336948]
[1736856270900,0.887,3216.5,3215.8,3.10962]
[1736856271807,0.887,3216.5,3215.9,3.10953]
[1736856272105,0.887,3216.5,3216.1,3.10934]
[1736856275213,0.887,3216.5,3215.7,0.63814082]
[1736856275411,0.865,3216.3,3215.3,8.83]
[1736856275615,0.0388681,3216.2,3215.5,3.10987]
[1736856276116,0.0388681,3216.2,3215.5,0.63035482]
[1736856276271,0.0388681,3216.2,3215.6,3.1098]
[1736856276670,0.865,3216.3,3215.7,3.10966]
[1736856280622,3.10888,3216.6,3216.4,3.10904]
[1736856280623,0.865,3216.6,3216.4,3.10904]
[1736856280779,0.865,3216.6,3216.5,0.310904]
[1736856280974,0.865,3216.6,3216.2,3.10925]
[1736856281168,0.865,3216.6,3215.8,0.29005962]
[1736856281395,0.865,3216.6,3215.8,3.39969962]
[1736856281711,0.865,3216.4,3215.8,0.29005962]
[1736856281916,0.90386763,3216.3,3215.8,0.29005962]
[1736856282299,0.90386763,3216.3,3215.5,3.10992]
[1736856282500,0.90386763,3216.3,3215.3,0.62598861]
[1736856282501,0.90386763,3216.3,3215.3,3.1101]
[1736856282815,0.90386763,3216.3,3215.5,3.10992]
[1736856283777,0.90386763,3216.3,3215.3,0.39326466]
[1736856283778,0.865,3216.3,3215.6,3.10983]
[1736856284086,0.0388682,3216.2,3215.6,3.10983]
[1736856284286,0.865,3216.3,3215.6,3.10983]
[1736856284727,0.03886821,3216.2,3215.6,3.10983]
[1736856285127,0.865,3216.3,3215.6,3.420813]
[1736856285287,0.03886821,3216.2,3215.6,3.420813]
[1736856286530,0.03886821,3216.2,3215.6,0.310983]
[1736856286826,0.03886821,3216.2,3215.7,3.10973]
[1736856288847,0.03886821,3216.2,3215.9,3.1095]
[1736856289030,0.865,3216.3,3216.0,3.10935]
[1736856289507,0.8123,3216.8,3216.6,3.10883]
[1736856290650,0.8123,3217.7,3216.7,3.10877]
[1736856290807,0.8123,3217.7,3216.8,3.10866]
[1736856291003,0.8123,3217.7,3216.5,2.93304475]
[1736856291288,0.8123,3217.7,3216.9,3.1085]
[1736856291434,0.8123,3217.7,3217.0,3.10841]
[1736856292351,0.8123,3217.7,3217.1,3.1083]
[1736856292519,0.8123,3217.7,3217.1,2.93304475]
[1736856292949,0.8123,3217.7,3217.2,3.1082]
[1736856293447,0.8123,3217.7,3217.4,3.10809]
[1736856293673,0.8123,3217.7,3216.8,3.72884475]
[1736856293980,0.8123,3217.7,3217.3,3.10814]
[1736856294444,0.8123,3217.7,3217.1,6.04139475]
[1736856297137,0.8123,3217.7,3217.1,3.10835]
[1736856297340,0.8123,3217.7,3217.1,3.419185]
[1736856298531,0.8123,3217.7,3217.3,3.10818]
[1736856299658,0.8123,3217.7,3217.5,3.10796]
[1736856299859,0.8123,3217.7,3217.2,3.10824]
[1736856300169,0.8123,3217.7,3217.3,3.10819]
[1736856300469,0.8123,3217.7,3217.4,3.729653]
[1736856300672,0.8123,3217.7,3217.5,3.108]
[1736856302870,0.8249,3218.7,3217.1,3.24387975]
[1736856303265,0.8249,3218.7,3217.4,2.93304475]
[1736856303496,0.8249,3218.7,3217.6,3.10784]
[1736856303845,0.8249,3218.5,3217.6,3.10784]
[1736856304113,0.8249,3218.3,3217.3,3.10811]
[1736856304325,0.8249,3218.1,3217.3,3.10811]
[1736856304587,0.8249,3217.9,3217.0,3.1084]
[1736856304808,0.8249,3217.7,3217.0,3.1084]
[1736856304947,0.8249,3217.5,3216.7,0.139]
[1736856305147,0.8249,3217.3,3216.6,3.71305348]
[1736856305392,0.8249,3217.1,3216.4,3.10903]
[1736856305592,0.03886041,3217.0,3216.4,3.10903]
[1736856305963,0.8249,3216.9,3216.2,3.10917]
[1736856306167,0.03885982,3216.8,3216.1,3.10935]
[1736856306481,0.03885982,3216.8,3216.2,3.731047]
[1736856307586,0.03885984,3216.8,3216.2,3.10917]
[1736856307899,0.03885984,3216.8,3215.8,0.93519549]
[1736856307900,0.8249,3216.7,3216.0,3.10941]
[1736856308099,0.8249,3216.7,3215.8,0.32161149]
[1736856308100,0.03886395,3216.6,3215.8,3.43123149]
[1736856308254,0.8249,3216.5,3215.8,3.43123149]
[1736856308456,0.03886779,3216.4,3215.8,3.43123149]
[1736856308699,0.03886779,3216.4,3215.8,0.32161149]
[1736856309060,0.03886779,3216.4,3215.8,3.43123149]
[1736856310519,0.8249,3216.5,3215.8,3.43123149]
[1736856310520,0.8249,3216.5,3215.8,0.95803911]
[1736856310667,0.8249,3216.5,3216.0,3.1094]
[1736856311517,0.8249,3216.5,3216.1,3.10934]
[1736856313316,0.8249,3216.5,3215.9,3.10949]
[1736856314018,0.8249,3216.5,3216.0,3.10942]
[1736856314788,0.8249,3216.5,3215.8,4.06765911]
[1736856314972,0.8249,3216.5,3215.8,0.32161149]
[1736856316043,0.8249,3216.5,3216.0,3.10935]
[1736856316803,0.8249,3216.5,3216.1,3.10933]
[1736856318030,0.8249,3216.5,3215.9,3.25514549]
[1736856318237,0.8249,3216.5,3216.1,3.10927]
[1736856318398,0.8249,3216.5,3216.2,3.10922]
[1736856319839,0.8249,3216.5,3216.1,0.63644155]
[1736856320297,0.8249,3216.5,3216.3,3.10914]
[1736856321541,0.8249,3216.5,3216.2,3.10924]
[1736856322057,0.8022,3216.8,3216.5,3.10891]
[1736856322256,0.8022,3216.8,3216.7,3.10877]
[1736856322481,0.8022,3217.1,3216.7,3.10877]
[1736856323375,0.8022,3217.1,3216.5,6.35281575]
[1736856323944,0.8022,3217.1,3216.6,3.10885]
[1736856325382,0.8022,3217.1,3216.4,3.10899]
[1736856325694,0.8022,3217.1,3216.2,2.93304475]
[1736856325695,0.8022,3217.1,3216.5,3.10889]
[1736856329886,0.8022,3217.1,3216.6,3.10883]
[1736856330303,0.8022,3217.1,3216.7,3.10876]
[1736856330601,0.8022,3217.1,3216.7,3.419636]
[1736856331462,0.8022,3217.1,3216.7,0.310876]
[1736856331911,0.8022,3217.1,3216.2,6.18127475]
[1736856332111,0.8022,3217.1,3216.4,3.109]
[1736856332311,0.8022,3217.1,3216.5,3.10892]
[1736856333077,0.8022,3217.1,3216.6,3.10885]
[1736856334504,0.8022,3217.1,3216.2,6.18127475]
[1736856334505,0.8022,3217.1,3216.7,3.10876]
[1736856337580,0.8022,3217.1,3216.7,3.419636]
[1736856341708,0.8022,3217.1,3216.7,0.310876]
[1736856341947,0.8022,3217.1,3216.5,2.93304475]
[1736856342107,0.8022,3217.1,3216.6,3.10885]
[1736856344336,0.8608,3216.9,3216.2,0.3112]
[1736856344513,0.8608,3216.9,3216.1,3.43035879]
[1736856344514,3.10882,3216.7,3216.1,0.32105879]
[1736856344714,0.8608,3216.5,3215.9,3.10949]
[1736856345013,0.8608,3216.5,3216.3,0.32153189]
[1736856346925,3.10906,3216.4,3216.3,0.32153189]
[1736856347241,0.8608,3216.5,3216.3,0.32153189]
[1736856349924,0.03886447,3216.4,3216.3,0.32153189]
[1736856350223,0.90086447,3216.4,3216.3,0.32153189]
[1736856356843,6.97106,3216.4,3216.3,0.32153189]
[1736856357171,6.97856,3216.4,3216.3,0.32153189]
[1736856357361,6.97856,3216.4,3215.5,3.10992]
[1736856357556,6.97856,3216.4,3215.9,0.32091865]
[1736856357934,0.862,3216.4,3215.9,0.32091865]
[1736856358134,0.03886869,3216.3,3215.9,0.32091865]
[1736856358332,0.862,3216.4,3215.9,0.66398352]
[1736856358551,0.862,3216.4,3215.9,0.32091865]
[1736856360379,0.03886867,3216.3,3215.9,0.32091865]
[1736856361872,0.862,3216.4,3215.9,0.32091865]
[1736856362582,0.03886866,3216.3,3215.9,0.32091865]
[1736856363746,0.862,3216.4,3215.9,0.32091865]
[1736856364046,0.03886843,3216.3,3215.9,0.32091865]
[1736856367981,0.03886843,3216.3,3215.8,3.10962]
[1736856368193,0.03886843,3216.3,3215.9,0.32130997]
[1736856370403,0.8405,3216.2,3215.9,0.32130997]
[1736856370695,0.8405,3216.2,3215.6,3.10981]
[1736856371199,0.03886856,3216.1,3215.6,3.10981]
[1736856371802,0.8405,3216.0,3215.5,3.10991]
[1736856372151,3.10881,3216.7,3214.2,0.32142845]
[1736856372152,0.03887143,3215.9,3215.2,0.02824663]
[1736856372347,0.8405,3215.8,3215.2,0.02824663]
[1736856372551,3.9504,3215.6,3215.2,0.02824663]
[1736856372779,0.03887832,3215.5,3215.2,0.02824663]
[1736856373044,3.14508032,3215.5,3215.2,0.02824663]
[1736856373370,0.8405,3215.4,3215.2,0.02824663]
[1736856373569,0.03514214,3215.3,3215.2,0.02824663]
[1736856373767,3.98576214,3215.3,3215.2,0.02824663]
[1736856377913,0.87564214,3215.3,3215.2,0.02824663]
[1736856379328,3.99326214,3215.3,3215.2,0.02824663]
[1736856379530,6.99326214,3215.3,3215.2,0.02824663]
[1736856379841,6.95812,3215.3,3215.2,0.02824663]
[1736856381016,3.8405,3215.3,3215.2,0.02824663]
[1736856381211,0.8405,3215.3,3215.2,0.02824663]
[1736856381547,0.805,3215.6,3215.2,0.02824663]
[1736856381782,0.84388076,3215.6,3215.2,0.02824663]
[1736856386581,3.84388076,3215.6,3215.2,0.02824663]
[1736856386806,3.10994,3215.5,3215.2,0.02824663]
[1736856386947,0.03888065,3215.4,3215.2,0.02824663]
[1736856387383,0.805,3215.3,3215.2,0.02824663]
[1736856388565,3.91512,3215.3,3215.2,0.02824663]
[1736856388890,3.92262,3215.3,3215.2,0.02824663]
[1736856390165,3.97152,3215.3,3215.2,0.02824663]
[1736856391701,6.97152,3215.3,3215.2,0.02824663]
[1736856392085,6.97152,3215.3,3215.2,0.01268663]
[1736856393884,3.8539,3215.3,3215.2,0.01268663]
[1736856394095,3.03888216,3215.3,3215.2,0.01268663]
[1736856394374,3.0,3215.3,3215.2,0.01268663]
[1736856398267,3.8539,3215.3,3215.2,0.01268663]
[1736856398656,3.89278119,3215.3,3215.2,0.01268663]
[1736856398967,7.00290119,3215.3,3215.2,0.01268663]
[1736856399268,3.0,3215.3,3215.2,0.01268663]
[1736856399638,3.03888069,3215.3,3215.2,0.01268663]
[1736856399836,0.03888069,3215.3,3215.2,0.01268663]
[1736856400074,0.8539,3215.9,3215.2,0.40590029]
[1736856400238,3.10929,3216.2,3215.3,3.91915]
[1736856400446,0.8539,3216.3,3215.6,3.10983]
[1736856400783,0.8539,3216.6,3215.7,0.8091]
[1736856400983,3.0,3216.3,3215.7,0.8091]
[1736856401269,0.03886933,3216.2,3215.7,0.8091]
[1736856402258,3.14802933,3216.3,3215.7,0.8091]
[1736856406448,0.03886933,3216.3,3215.7,0.8091]
[1736856407072,3.14807933,3216.3,3215.7,0.8091]
[1736856407774,0.03886933,3216.3,3215.7,0.8091]
[1736856407980,0.0388693,3216.3,3215.7,0.8091]
[1736856408962,0.8539,3216.6,3215.7,1.200996]
[1736856409199,3.10904,3216.5,3215.7,1.200996]
[1736856409394,0.03886858,3216.4,3215.7,1.200996]
[1736856409689,3.14796858,3216.4,3215.7,0.8091]
[1736856410197,3.10916,3216.3,3215.7,0.8091]
[1736856410349,0.03886861,3216.2,3215.7,0.8091]
[1736856412601,3.10917,3216.3,3215.7,0.8091]
[1736856412898,0.03886862,3216.2,3215.7,0.8091]
[1736856415253,0.8539,3216.6,3215.7,1.201002]
[1736856415526,3.10885,3216.7,3215.8,0.8444]
[1736856415726,3.0,3216.8,3216.0,0.8444]
[1736856416095,3.10907,3216.4,3216.0,0.8444]
[1736856416410,3.14804753,3216.3,3216.0,0.8444]
[1736856420464,3.14804753,3216.3,3215.7,0.8464]
[1736856420465,3.10926,3216.2,3215.7,0.8464]
[1736856420662,0.03886923,3216.1,3215.7,0.8464]
[1736856422815,3.10962,3215.9,3215.4,1.13710519]
[1736856423017,0.03887279,3215.8,3215.4,1.13710519]
[1736856423309,0.03887279,3215.8,3215.4,0.29070519]
[1736856423513,3.10984,3215.6,3215.4,0.29070519]
[1736856423746,0.03887617,3215.5,3215.4,0.29070519]
[1736856424127,0.03887617,3215.5,3215.2,0.01268663]
[1736856424730,3.11003,3215.4,3215.2,0.01268663]
[1736856424933,3.14899907,3215.3,3215.2,0.01268663]
[1736856426872,0.03887907,3215.3,3215.2,0.01268663]
[1736856427082,3.14892907,3215.4,3215.2,0.01268663]
[1736856434363,3.11012,3215.3,3215.2,0.01268663]
[1736856439788,3.93802,3215.3,3215.2,0.01268663]
[1736856439993,6.98440297,3215.3,3215.2,0.01268663]
[1736856440300,7.49552,3215.3,3215.2,0.01268663]
[1736856440723,7.49552,3215.3,3215.2,6.63e-06]
[1736856440897,8.35593009,3215.3,3215.2,6.63e-06]
[1736856442457,7.49552,3215.3,3215.2,6.63e-06]
[1736856442755,6.94552,3215.3,3215.2,6.63e-06]
[1736856443104,3.93802,3215.3,3215.2,6.63e-06]
[1736856443363,3.11012,3215.3,3215.2,6.63e-06]
[1736856443816,3.0,3215.4,3215.2,6.63e-06]
[1736856446360,6.94552,3215.3,3215.2,6.63e-06]
[1736856447654,7.49552,3215.3,3215.2,6.63e-06]
[1736856449141,8.37841482,3215.3,3215.2,6.63e-06]
[1736856449632,8.12841482,3215.3,3215.2,6.63e-06]
[1736856450030,8.5534022,3215.3,3215.2,6.63e-06]
[1736856451305,8.8034022,3215.3,3215.2,6.63e-06]
[1736856452506,8.8034022,3215.3,3214.7,2.44677761]
[1736856452507,6.11061,3214.8,3214.7,2.44677761]
[1736856452741,9.90104653,3214.8,3214.7,2.44677761]
[1736856452945,9.86215475,3214.8,3214.7,2.44677761]
[1736856453261,7.47911,3214.8,3214.7,2.44677761]
[1736856453471,7.47911,3214.8,3214.7,7.61e-06]
[1736856455667,8.09468447,3214.8,3214.7,7.61e-06]
[1736856455869,0.8494,3214.6,3213.3,0.69340761]
[1736856456170,0.0075,3214.2,3213.4,0.32069475]
[1736856456352,3.11159,3213.8,3213.4,0.32069475]
[1736856456671,0.03890086,3213.7,3213.4,0.32069475]
[1736856456830,0.03890086,3213.7,3213.3,0.69340761]
[1736856457026,3.11178,3213.6,3213.3,0.69340761]
[1736856457343,3.11197,3213.4,3212.6,0.32275384]
[1736856457539,3.15096369,3213.3,3212.6,0.32275384]
[1736856458165,3.15846369,3213.3,3212.6,0.32275384]
[1736856458370,6.15846369,3213.3,3212.6,0.32275384]
[1736856459750,3.0,3213.3,3212.6,0.32275384]
[1736856460166,3.03890403,3213.3,3212.6,0.32275384]
[1736856460369,6.11956,3213.3,3213.0,0.7088]
[1736856460531,6.15846403,3213.3,3213.0,0.7088]
[1736856461163,6.11206,3213.3,3213.0,0.7088]
[1736856461643,6.15096517,3213.3,3212.8,0.7088]
[1736856462282,6.15846517,3213.3,3212.8,0.7088]
[1736856462457,6.11956,3213.3,3212.8,0.7088]
[1736856462658,6.15846516,3213.3,3212.8,0.7088]
[1736856463372,6.11956,3213.3,3212.8,0.7088]
[1736856463584,3.11175,3213.7,3213.3,0.7088]
[1736856463743,0.8494,3213.9,3213.3,0.7088]
[1736856464075,3.1117,3213.7,3213.3,1.03103399]
[1736856464285,0.03890215,3213.6,3213.3,0.7088]
[1736856466446,0.0075,3214.1,3213.3,0.7088]
[1736856466647,3.11176,3213.7,3213.3,0.7088]
[1736856467475,3.11181,3213.6,3213.3,0.7088]
[1736856468894,3.0075,3213.9,3213.3,0.7088]
[1736856469355,0.0075,3213.7,3213.3,0.7088]
[1736856469555,3.11187,3213.5,3213.3,0.7088]
[1736856469855,0.0389035,3213.4,3213.3,0.7088]
[1736856470182,3.11187,3213.5,3213.3,0.7088]
[1736856470564,0.03890349,3213.4,3213.3,0.7088]
[1736856470889,0.03890349,3213.4,3212.5,3.11277]